bitfinex/quotes_ETHUSD_20250413
["timestamp","ask_amount","ask_price","bid_price","bid_amount"]
[1744552152041,0.2316,1588.4,1588.1,3.0]
[1744552152242,0.2316,1588.4,1588.2,6.29631]
[1744552152546,0.2316,1588.4,1588.3,6.925661]
[1744552153557,0.2316,1588.4,1588.3,10.475661]
[1744552154843,0.2316,1588.4,1588.3,12.040861]
[1744552155956,0.2316,1588.4,1588.3,3.629631]
[1744552156151,6.29683,1588.1,1587.8,6.2978]
[1744552156366,6.2962,1588.3,1588.0,6.2971]
[1744552156757,6.2962,1588.3,1587.9,6.29748]
[1744552156962,0.2316,1588.4,1588.2,6.29612]
[1744552157155,0.2316,1588.4,1588.2,6.925732]
[1744552157355,0.2316,1588.4,1588.2,0.629612]
[1744552157560,6.52743,1588.4,1588.1,3.0]
[1744552157759,0.2316,1588.4,1588.1,6.29661]
[1744552157965,6.52735,1588.4,1588.1,6.29661]
[1744552158375,6.29634,1588.3,1588.0,4.5652]
[1744552158575,6.52731,1588.4,1588.0,7.86221]
[1744552158748,6.52731,1588.4,1588.1,3.786221]
[1744552159565,0.2316,1588.4,1588.1,10.082881]
[1744552159971,6.52738,1588.4,1588.1,3.786221]
[1744552160348,6.29616,1588.3,1588.1,3.786221]
[1744552160880,6.29616,1588.3,1588.0,7.86225]
[1744552160881,6.29616,1588.3,1588.0,3.0]
[1744552161082,6.29616,1588.3,1588.0,9.29719]
[1744552161284,14.44636,1588.4,1588.0,15.59429]
[1744552161486,6.2962,1588.3,1588.0,9.2971]
[1744552161774,12.59242,1588.3,1588.0,6.2971]
[1744552162385,6.29675,1588.2,1587.9,3.0]
[1744552162568,6.29675,1588.2,1587.9,9.29749]
[1744552162886,6.29675,1588.2,1587.9,15.6579199]
[1744552163082,6.29675,1588.2,1587.9,9.29746]
[1744552163782,6.29663,1588.2,1587.9,9.29746]
[1744552163946,6.29661,1588.2,1587.9,0.70957707]
[1744552164154,6.29699,1588.1,1587.8,16.3293]
[1744552164483,12.594,1588.1,1587.8,16.3293]
[1744552165580,1.5458,1587.9,1587.4,7.94889]
[1744552165785,6.63,1588.3,1587.4,1.6493]
[1744552165786,1.5458,1588.2,1587.4,1.6493]
[1744552165980,6.2962,1588.3,1587.9,6.29735]
[1744552166282,6.2962,1588.3,1587.9,7.94665]
[1744552166583,12.59244,1588.3,1588.0,6.29721]
[1744552166963,18.93328,1588.4,1588.1,6.29675]
[1744552167163,6.29619,1588.3,1587.9,7.94689]
[1744552167681,6.29656,1588.2,1587.9,7.94676]
[1744552167980,6.3416,1588.4,1588.0,6.29722]
[1744552168173,6.29622,1588.3,1587.9,9.426304]
[1744552168668,6.29657,1588.2,1587.9,3.128774]
[1744552168884,6.29603,1588.3,1587.7,7.91904]
[1744552169086,7.80282,1588.0,1587.4,1.6207]
[1744552169384,6.29833,1587.8,1587.4,7.92014]
[1744552169594,1.5056,1588.0,1587.4,1.6207]
[1744552169755,6.29899,1587.6,1587.2,7.92106]
[1744552169954,6.2996,1587.5,1587.2,1.6207]
[1744552170197,12.59966,1587.4,1587.0,7.561256]
[1744552170482,7.80532,1587.4,1587.0,13.862326]
[1744552170688,7.80532,1587.4,1586.9,10.1167]
[1744552170689,6.3008,1587.1,1586.9,10.1167]
[1744552170894,6.30136,1587.0,1586.7,7.83028]
[1744552171067,6.30002,1587.3,1586.4,7.83138]
[1744552171068,6.30199,1586.8,1586.4,7.83138]
[1744552171265,6.30298,1586.6,1586.2,6.30424]
[1744552171478,7.91648,1586.9,1586.1,1.5279]
[1744552171479,6.30252,1586.7,1586.3,6.934374]
[1744552171673,1.6148,1586.9,1586.3,6.934374]
[1744552171674,12.60429,1586.8,1586.3,6.934364]
[1744552171990,12.6043,1586.8,1586.4,6.30343]
[1744552172153,12.60436,1586.8,1586.4,6.30343]
[1744552172359,20.72944,1587.2,1586.8,6.30185]
[1744552172595,6.11,1587.2,1586.8,1.260418]
[1744552172776,7.91485,1587.3,1586.8,7.82975]
[1744552172984,6.30097,1587.1,1586.8,1.5279]
[1744552173159,6.30097,1587.1,1586.8,7.82987]
[1744552174206,6.30076,1587.2,1586.8,7.82968]
[1744552174361,6.30076,1587.2,1586.9,6.30149]
[1744552175187,6.11,1587.5,1587.1,6.30077]
[1744552175188,12.40925,1587.5,1587.1,6.30077]
[1744552175497,12.40925,1587.5,1587.1,12.6014]
[1744552175787,6.29982,1587.4,1587.0,12.60219]
[1744552176106,12.40925,1587.5,1587.1,6.30056]
[1744552176281,12.40925,1587.5,1587.2,6.30039]
[1744552176463,8.319,1587.6,1587.3,6.29975]
[1744552176774,8.319,1587.6,1587.4,6.2996]
[1744552176973,8.319,1587.6,1587.3,6.29975]
[1744552177470,8.319,1587.6,1587.4,6.2996]
[1744552177663,20.72938,1588.0,1587.6,6.29862]
[1744552177868,4.10539476,1588.1,1587.7,2.0601]
[1744552178067,6.29735,1588.0,1587.7,1.5101]
[1744552178485,6.29735,1588.0,1587.6,6.29859]
[1744552178666,6.29735,1588.0,1587.6,12.59724]
[1744552178876,6.29735,1588.0,1587.6,12.59721]
[1744552179084,12.5948,1588.0,1587.6,7.709321]
[1744552179278,12.59563,1587.9,1587.6,1.410731]
[1744552179482,6.29779,1587.9,1587.6,1.410731]
[1744552179676,6.29779,1587.9,1587.6,7.709531]
[1744552180067,12.59567,1587.9,1587.6,1.410731]
[1744552180416,6.30015,1587.3,1587.1,0.46538691]
[1744552180896,6.3004,1587.2,1587.1,0.46538691]
[1744552181066,6.30109,1587.1,1586.7,12.60458]
[1744552181267,6.30045,1587.2,1586.8,6.30178]
[1744552181595,6.30045,1587.2,1586.9,0.630178]
[1744552181794,6.30002,1587.3,1586.9,6.931638]
[1744552182002,6.30119,1587.0,1586.6,7.90252]
[1744552182297,6.30055,1587.2,1586.8,6.30174]
[1744552182502,6.30092,1587.1,1586.7,6.30238]
[1744552182794,6.30092,1587.1,1586.3,54.02]
[1744552182795,6.3025,1586.7,1586.3,55.62]
[1744552182970,6.30231,1586.8,1586.4,5.562]
[1744552183176,12.60345,1586.9,1586.4,3.0]
[1744552183373,12.60353,1586.9,1586.4,3.0630286]
[1744552183575,12.60345,1586.9,1586.4,9.3665286]
[1744552183778,6.30084,1587.1,1586.5,6.30315]
[1744552183987,1.6233,1587.2,1586.5,0.55]
[1744552184215,6.30146,1587.0,1586.5,1.535353]
[1744552184594,6.30164,1586.9,1586.5,1.535353]
[1744552184897,12.60351,1586.9,1586.5,1.535353]
[1744552185078,6.30125,1587.0,1586.5,7.838433]
[1744552185427,6.302,1586.8,1586.6,1.5097]
[1744552185994,6.30324,1586.5,1586.3,1.5097]
[1744552186512,6.30324,1586.5,1586.2,3.0]
[1744552186690,6.30324,1586.5,1586.0,1.5097]
[1744552186691,6.30454,1586.2,1586.0,1.5097]
[1744552187114,6.30404,1586.3,1586.0,1.5097]
[1744552187299,6.30442,1586.2,1585.8,3.06304762]
[1744552187507,6.30478,1586.1,1585.8,5.64830476]
[1744552187705,6.30543,1586.0,1585.8,1.5097]
[1744552188014,6.30399,1586.3,1585.8,4.5097]
[1744552189221,6.30535,1586.0,1585.7,8.323]
[1744552189513,6.30486,1586.1,1585.8,6.30595]
[1744552189713,6.30486,1586.1,1585.7,14.62918]
[1744552189881,6.3044,1586.2,1585.8,12.61171]
[1744552190088,1.6233,1586.4,1585.9,1.261171]
[1744552190399,12.61024,1586.1,1585.8,0.55]
[1744552190606,6.30519,1586.0,1585.7,14.62918]
[1744552190794,6.30512,1586.1,1585.7,20.93535]
[1744552190996,12.6101,1586.1,1585.7,14.62917]
[1744552191183,6.3052,1586.0,1585.7,14.62917]
[1744552191384,6.30479,1586.1,1585.7,27.0802896]
[1744552191679,14.433,1586.5,1585.9,2.1801]
[1744552191680,6.11,1586.5,1585.9,2.1801]
[1744552192184,6.30492,1586.1,1585.8,9.30582]
[1744552192706,6.30466,1586.2,1585.8,9.30579]
[1744552192888,6.30486,1586.1,1585.8,11.90117496]
[1744552193089,6.30486,1586.1,1585.8,3.0]
[1744552193415,6.3053,1586.0,1585.8,3.0]
[1744552194821,6.30486,1586.1,1585.8,9.30592]
[1744552194990,6.3045,1586.2,1585.8,9.3058]
[1744552195315,6.30535,1586.0,1585.8,3.0]
[1744552195520,6.30481,1586.1,1585.8,3.0]
[1744552196421,6.30481,1586.1,1585.8,9.30596]
[1744552197521,6.30397,1586.3,1585.7,9.9531]
[1744552197707,6.30549,1586.0,1585.7,9.9531]
[1744552197890,6.30537,1586.0,1585.7,16.25932]
[1744552198423,12.61074,1586.0,1585.7,16.25932]
[1744552198724,6.30534,1586.0,1585.7,16.25932]
[1744552198937,7.86629,1586.4,1585.7,16.2593]
[1744552198938,12.60985,1586.1,1585.7,16.2593]
[1744552199219,6.3052,1586.0,1585.7,25.122086]
[1744552199418,6.3052,1586.0,1585.7,25.122096]
[1744552199612,12.60895,1586.2,1585.8,6.30576]
[1744552199812,6.30443,1586.2,1585.9,6.30556]
[1744552200123,6.30536,1586.0,1585.7,12.509696]
[1744552200443,6.30596,1585.8,1585.5,7.86252]
[1744552200587,6.30565,1585.9,1585.5,7.86252]
[1744552200789,6.30565,1585.9,1585.6,6.30657]
[1744552201016,12.61148,1585.9,1585.5,7.86261]
[1744552201325,6.3052,1586.0,1585.7,6.30626]
[1744552201623,6.3048,1586.1,1585.7,6.3062]
[1744552201834,14.19509,1586.2,1585.8,12.61166]
[1744552202036,6.30487,1586.1,1585.8,6.30581]
[1744552202237,6.30487,1586.1,1585.8,12.61162]
[1744552202440,6.30487,1586.1,1585.8,6.30581]
[1744552202624,9.7241,1586.4,1585.9,1.5555]
[1744552202807,7.8898,1586.4,1586.0,6.30484]
[1744552203119,12.60843,1586.3,1585.9,7.86097]
[1744552203430,12.60932,1586.2,1585.9,1.5555]
[1744552203633,12.60932,1586.2,1585.8,12.61178]
[1744552203838,12.60932,1586.2,1585.8,8.022528]
[1744552203839,6.30466,1586.2,1585.8,8.022528]
[1744552204292,1.5861,1586.4,1585.9,0.55]
[1744552204492,6.30413,1586.3,1585.9,6.85546]
[1744552204697,6.11,1586.5,1586.0,7.89641]
[1744552204896,18.71661,1586.5,1586.1,6.30463]
[1744552205204,6.30409,1586.3,1586.0,7.89643]
[1744552205404,6.30444,1586.2,1586.0,1.5915]
[1744552205622,6.30409,1586.3,1586.0,7.89655]
[1744552205808,6.30409,1586.3,1586.0,14.20157]
[1744552206201,6.30278,1586.6,1586.1,6.30458]
[1744552206401,6.3037,1586.4,1586.1,6.30471]
[1744552206736,6.11,1586.8,1586.4,6.30325]
[1744552207027,6.30168,1586.9,1586.6,6.30261]
[1744552207343,6.30128,1587.0,1586.6,12.60527]
[1744552207542,7.6484,1587.1,1586.8,6.30176]
[1744552207750,1.5384,1587.1,1586.8,6.30176]
[1744552208029,12.601,1587.2,1586.8,6.30176]
[1744552208322,6.30212,1586.8,1586.5,16.0326]
[1744552208528,7.84003,1586.9,1586.5,9.7295]
[1744552208841,7.84003,1586.9,1586.5,22.33544]
[1744552208990,7.84003,1586.9,1586.5,16.03242]
[1744552209194,6.30278,1586.6,1586.5,9.7295]
[1744552209426,6.3024,1586.7,1586.4,3.0]
[1744552209791,12.60419,1586.8,1586.4,9.30356]
[1744552209998,1.5384,1586.9,1586.5,6.30301]
[1744552209999,14.14183,1586.9,1586.5,6.30301]
[1744552210196,6.30242,1586.7,1586.4,3.0]
[1744552210397,6.30242,1586.7,1586.3,14.13769]
[1744552210741,6.30207,1586.8,1586.5,6.30302]
[1744552210912,6.30161,1586.9,1586.5,6.30302]
[1744552211115,6.30161,1586.9,1586.6,6.30268]
[1744552211425,6.30174,1586.9,1586.7,1.53]
[1744552211896,6.11,1587.0,1586.7,1.53]
[1744552211897,12.41131,1587.0,1586.7,1.53]
[1744552212097,12.41131,1587.0,1586.7,7.83225]
[1744552212515,6.11,1587.0,1586.8,6.30184]
[1744552213701,6.11,1587.0,1586.7,14.13445]
[1744552213900,12.60196,1587.1,1586.7,14.13445]
[1744552214119,6.30121,1587.0,1586.7,1.53]
[1744552214320,6.30187,1586.9,1586.5,14.807552]
[1744552214652,6.30187,1586.9,1586.6,6.30277]
[1744552215014,12.6046,1586.8,1586.5,5.201402]
[1744552215334,6.30218,1586.8,1586.5,5.201402]
[1744552215533,6.30263,1586.7,1586.5,3.0]
[1744552215759,6.30308,1586.6,1586.2,7.82042]
[1744552215936,1.5815,1586.6,1586.1,8.137]
[1744552216141,6.30399,1586.3,1586.1,8.137]
[1744552216448,6.30399,1586.3,1586.0,7.8212]
[1744552216655,6.30399,1586.3,1586.0,13.9661096]
[1744552217036,6.30399,1586.3,1586.0,13.9660996]
[1744552217344,12.60736,1586.4,1586.0,20.2710896]
[1744552217646,6.30358,1586.4,1586.0,7.6610596]
[1744552217964,6.30318,1586.5,1585.8,7.82186]
[1744552217965,6.30496,1586.1,1585.8,7.82186]
[1744552218148,6.30489,1586.1,1585.8,7.82188]
[1744552218856,6.30523,1586.0,1585.7,8.136]
[1744552219019,7.88594,1586.2,1585.7,8.136]
[1744552219222,20.55045,1586.5,1585.7,8.136]
[1744552219223,6.30364,1586.4,1585.8,1.3636]
[1744552219522,20.55024,1586.5,1586.1,6.30445]
[1744552219726,14.44024,1586.5,1586.1,12.60902]
[1744552219912,12.60618,1586.6,1586.2,6.30434]
[1744552220116,12.60618,1586.6,1586.2,12.60852]
[1744552220313,1.6111,1586.7,1586.4,6.30345]
[1744552220314,7.91363,1586.7,1586.4,6.30345]
[1744552220544,6.11,1586.8,1586.3,2.904152]
[1744552220716,6.30291,1586.6,1586.2,6.30415]
[1744552221109,12.60597,1586.6,1586.2,6.30415]
[1744552221309,6.30291,1586.6,1586.2,12.60835]
[1744552221602,12.41212,1586.8,1586.1,7.94803]
[1744552221834,6.30414,1586.3,1586.1,1.6433]
[1744552222462,6.30366,1586.4,1586.1,1.6433]
[1744552222782,6.30366,1586.4,1586.0,6.30498]
[1744552222997,6.30366,1586.4,1586.0,7.79340273]
[1744552223153,6.30321,1586.5,1586.1,6.30473]
[1744552223354,12.60784,1586.4,1586.0,7.730416]
[1744552223581,12.60662,1586.5,1586.1,6.30444]
[1744552223879,14.43985,1586.6,1586.2,6.30418]
[1744552224054,14.43985,1586.6,1586.3,6.30396]
[1744552224384,14.43985,1586.6,1586.2,6.94090184]
[1744552224385,6.3032,1586.5,1586.2,6.94090184]
[1744552224884,14.43985,1586.6,1586.3,6.30396]
[1744552225089,1.6233,1586.5,1586.0,1.425376]
[1744552225256,6.30397,1586.3,1585.7,7.89051]
[1744552225572,6.30517,1586.0,1585.8,0.789051]
[1744552225898,6.30479,1586.1,1585.8,0.789051]
[1744552226369,6.30529,1586.0,1585.8,0.789051]
[1744552226795,6.30529,1586.0,1585.7,7.95357738]
[1744552226957,7.92816,1586.1,1585.7,14.25979738]
[1744552227150,7.92816,1586.1,1585.7,14.19674]
[1744552227379,6.30526,1586.0,1585.7,7.89042]
[1744552227593,6.30406,1586.3,1585.7,1.5842]
[1744552227737,14.03654,1586.5,1586.1,7.88877]
[1744552227944,14.03654,1586.5,1586.1,14.982277]
[1744552227945,6.30324,1586.5,1586.1,14.982277]
[1744552228184,6.30324,1586.5,1586.1,2.373077]
[1744552228341,6.30324,1586.5,1586.2,6.30413]
[1744552228741,12.60579,1586.6,1586.2,12.60834]
[1744552229066,1.6233,1586.7,1586.2,1.4981417]
[1744552229278,6.30375,1586.4,1586.1,0.788877]
[1744552229476,12.60765,1586.4,1586.1,0.788877]
[1744552229782,6.30327,1586.5,1586.2,6.30414]
[1744552230365,6.30287,1586.6,1586.2,6.30414]
[1744552230581,12.60589,1586.6,1586.2,14.20469]
[1744552230767,6.30287,1586.6,1586.3,7.724379]
[1744552231369,12.60584,1586.6,1586.3,7.724379]
[1744552231564,6.54917349,1586.5,1586.3,1.420469]
[1744552231963,6.54927349,1586.5,1586.2,1.5963]
[1744552232488,0.24594349,1586.5,1586.2,7.90053]
[1744552232658,0.24594349,1586.5,1586.3,6.30394]
[1744552233496,6.54925349,1586.5,1586.2,7.90053]
[1744552233690,6.54914349,1586.5,1586.1,6.30467]
[1744552233894,6.54914349,1586.5,1586.1,7.235077]
[1744552234096,6.3036,1586.4,1586.1,7.235077]
[1744552234288,0.19397653,1586.3,1586.1,7.235077]
[1744552234497,6.3036,1586.4,1586.1,7.235077]
[1744552234673,0.19397653,1586.3,1586.1,7.235077]
[1744552234875,6.3036,1586.4,1586.1,7.235077]
[1744552235079,0.19397653,1586.3,1586.1,7.235067]
[1744552235282,0.19397653,1586.3,1586.1,0.930467]
[1744552235497,0.19397653,1586.2,1586.1,9.30476]
[1744552235667,6.3036,1586.4,1586.1,15.60939]
[1744552235868,0.19397653,1586.3,1586.2,6.30437]
[1744552236079,6.3028,1586.6,1586.2,12.67178158]
[1744552236274,0.19397653,1586.5,1586.2,6.30437]
[1744552236475,6.49723653,1586.5,1586.1,9.30467]
[1744552236677,12.80072653,1586.5,1586.1,17.324187]
[1744552236967,12.80072653,1586.5,1586.1,15.60929]
[1744552237298,6.49723653,1586.5,1586.1,15.60929]
[1744552237500,6.49723653,1586.5,1586.2,6.30419]
[1744552237700,12.80060653,1586.5,1586.2,6.30419]
[1744552237866,6.30364,1586.4,1586.1,9.30464]
[1744552238062,0.19223145,1586.3,1586.1,15.60928]
[1744552238267,12.60681,1586.5,1586.1,15.60928]
[1744552238494,0.19223145,1586.4,1586.1,15.60928]
[1744552238803,0.19223145,1586.4,1586.1,17.954598]
[1744552239297,0.19223145,1586.4,1586.2,6.30437]
[1744552240385,6.49599145,1586.4,1586.0,14.14912]
[1744552240586,6.30413,1586.3,1586.0,14.149]
[1744552240796,6.3049,1586.1,1585.8,12.61164]
[1744552240985,6.30453,1586.2,1585.9,6.30554]
[1744552241300,6.30364,1586.4,1586.1,6.30456]
[1744552241796,12.60746,1586.4,1586.0,12.6103]
[1744552241988,12.60739,1586.4,1586.0,12.6103]
[1744552242183,6.30364,1586.4,1586.0,12.6103]
[1744552242385,6.30397,1586.3,1586.0,6.30515]
[1744552242682,12.60922,1586.2,1585.9,6.30551]
[1744552242890,6.30461,1586.2,1585.9,6.30551]
[1744552243706,6.30407,1586.3,1585.9,6.30544]
[1744552244000,6.30358,1586.4,1586.0,6.30481]
[1744552244202,14.02544,1586.5,1585.9,0.55]
[1744552244501,20.32884,1586.5,1586.1,14.25305]
[1744552244701,6.30367,1586.4,1586.1,7.94831]
[1744552245402,1.6111,1586.1,1585.6,9.4877]
[1744552245612,1.6111,1586.1,1585.6,0.94877]
[1744552245613,6.30631,1585.8,1585.6,0.94877]
[1744552245783,6.30559,1585.9,1585.5,6.30684]
[1744552245986,7.91616,1586.1,1585.4,1.6437]
[1744552245987,1.6111,1586.1,1585.4,7.95116]
[1744552246199,1.6111,1586.1,1585.2,6.30801]
[1744552246200,1.6111,1586.3,1585.5,1.6437]
[1744552246377,6.30543,1586.0,1585.6,6.30656]
[1744552246571,6.30486,1586.1,1585.6,0.795026]
[1744552246788,0.18544633,1585.9,1585.8,6.30594]
[1744552246987,6.30486,1586.1,1585.8,6.30594]
[1744552247183,0.18544633,1585.9,1585.8,6.30594]
[1744552247813,6.30505,1586.1,1585.7,6.30617]
[1744552248106,6.30505,1586.1,1585.8,6.30596]
[1744552248307,0.18254508,1586.0,1585.7,12.61241]
[1744552248505,0.18254508,1586.0,1585.7,13.9531536]
[1744552248676,6.48788508,1586.0,1585.6,7.101706]
[1744552249014,0.18254508,1586.0,1585.5,1.6437]
[1744552249181,0.18254508,1586.0,1585.3,6.30765]
[1744552249182,6.30675,1585.7,1585.3,6.30792]
[1744552249387,6.30675,1585.7,1585.3,12.61584]
[1744552249586,0.1826698,1585.6,1585.3,12.61584]
[1744552249909,0.1826698,1585.6,1585.3,14.043164]
[1744552250079,0.1826698,1585.5,1585.2,7.96563]
[1744552250275,0.1826698,1585.5,1585.3,6.30787]
[1744552250481,0.1826698,1585.5,1585.2,14.27376]
[1744552250681,12.7973698,1585.5,1585.2,1.6574]
[1744552250884,14.3021698,1585.5,1585.1,20.51138]
[1744552251078,6.30786,1585.4,1585.1,10.098778]
[1744552251293,6.30835,1585.2,1585.1,0.05]
[1744552251607,0.17705598,1585.2,1585.1,12.66738]
[1744552251812,0.17705598,1585.2,1585.1,14.20378]
[1744552252034,12.6138,1585.6,1585.2,6.30822]
[1744552252185,6.30677,1585.6,1585.2,12.61639]
[1744552252384,12.61385,1585.6,1585.2,6.30817]
[1744552252604,6.30796,1585.3,1585.1,0.05]
[1744552252785,7.81276,1585.3,1585.1,0.05]
[1744552253177,6.30835,1585.2,1585.1,0.05]
[1744552255490,17.42860625,1585.2,1585.1,0.05]
[1744552255816,7.86113,1584.2,1583.8,0.867]
[1744552256015,1.5488,1584.2,1583.8,0.867]
[1744552256215,7.86113,1584.2,1583.8,0.867]
[1744552257141,17.64866322,1584.2,1583.8,0.867]
[1744552257286,17.64866322,1584.2,1583.6,0.005]
[1744552257287,7.86312,1583.7,1583.6,0.005]
[1744552257787,20.6003,1583.8,1583.6,0.005]
[1744552257981,14.28608,1583.8,1583.6,0.005]
[1744552258192,1.5488,1583.9,1583.6,0.005]
[1744552258399,6.31411,1583.8,1583.6,0.005]
[1744552258601,6.31432,1583.7,1583.6,0.005]
[1744552258828,6.31411,1583.8,1583.6,0.005]
[1744552259033,7.86235,1583.9,1583.6,0.005]
[1744552259277,6.31395,1583.8,1583.6,0.005]
[1744552259387,6.31432,1583.7,1583.6,0.005]
[1744552259915,12.42395,1583.8,1583.6,0.005]
[1744552260103,7.83462,1583.7,1583.6,0.005]
[1744552260308,13.94462,1583.7,1583.6,0.005]
[1744552260901,6.31632,1583.2,1583.1,0.05]
[1744552261117,13.94662,1583.2,1583.1,0.05]
[1744552261809,7.6303,1583.2,1583.1,0.05]
[1744552262021,13.94569,1583.5,1583.1,6.36669]
[1744552262348,6.3157,1583.4,1583.1,0.05]
[1744552262495,6.31608,1583.3,1583.1,0.05]
[1744552263029,6.11,1583.5,1583.3,6.31576]
[1744552263224,6.31632,1583.2,1583.1,0.05]
[1744552263941,6.31606,1583.3,1583.1,0.05]
[1744552264095,1.5203,1583.4,1583.1,0.05]
[1744552264291,6.11,1583.5,1583.2,6.31631]
[1744552264534,6.11,1583.5,1583.2,12.6324]
[1744552264732,6.11,1583.5,1583.3,6.31577]
[1744552264937,15.87048,1583.7,1583.3,6.31577]
[1744552264938,9.5561,1583.7,1583.4,6.31549]
[1744552265093,7.89346,1583.7,1583.3,12.63149]
[1744552265289,1.5791,1583.7,1583.4,6.31545]
[1744552265495,7.89356,1583.7,1583.3,6.31575]
[1744552265716,7.89542,1583.2,1583.1,0.05]
[1744552265891,24.98442,1583.2,1583.1,0.05]
[1744552266511,6.31751,1582.9,1582.8,0.399048]
[1744552267509,7.89661,1582.9,1582.8,0.399048]
[1744552268553,6.31791,1582.8,1582.7,0.005]
[1744552268750,21.98601,1582.8,1582.7,0.005]
[1744552270701,14.00701,1582.8,1582.7,0.005]
[1744552271308,12.42791,1582.8,1582.7,0.005]
[1744552272422,14.05121,1582.8,1582.7,0.005]
[1744552272598,18.06821954,1582.8,1582.7,1e-05]
[1744552272802,7.94361,1582.2,1582.1,0.05]
[1744552273246,7.94361,1582.2,1581.3,6.32376]
[1744552273247,6.32255,1581.7,1581.3,6.32376]
[1744552273546,6.32255,1581.7,1581.2,6.723188]
[1744552273547,6.32245,1581.7,1581.2,6.723188]
[1744552273741,1.6233,1581.8,1581.2,0.399048]
[1744552273951,12.43126,1582.0,1581.5,6.32284]
[1744552274247,6.32214,1581.8,1581.3,7.88861]
[1744552274461,7.94538,1581.8,1581.2,0.399048]
[1744552274756,7.7333,1582.0,1581.3,6.32376]
[1744552274931,6.11,1582.0,1581.8,6.32174]
[1744552275277,7.7333,1582.4,1582.0,6.32088]
[1744552275427,7.7333,1582.4,1582.2,6.32022]
[1744552275428,6.11,1582.4,1582.2,6.32022]
[1744552275629,6.11,1582.4,1582.0,6.32083]
[1744552275869,6.11,1582.4,1581.8,2.172674]
[1744552276353,7.985,1582.7,1582.3,12.63969]
[1744552276529,14.30338,1582.7,1582.1,6.3207]
[1744552276727,14.30338,1582.7,1582.2,12.64029]
[1744552276953,14.30338,1582.7,1582.2,6.32013]
[1744552277158,6.31876,1582.6,1582.1,6.32071]
[1744552277320,6.31876,1582.6,1582.1,6.3205]
[1744552277656,6.31876,1582.6,1582.2,6.32031]
[1744552278431,12.63773,1582.6,1582.1,6.3205]
[1744552278759,6.32055,1582.2,1581.4,7.86389]
[1744552278958,20.41655,1582.2,1581.7,12.64425]
[1744552279141,6.3208,1582.1,1581.6,6.32258]
[1744552279343,20.41655,1582.2,1581.7,12.64424]
[1744552279542,14.096,1582.2,1581.8,12.64353]
[1744552279745,14.096,1582.2,1581.8,6.32176]
[1744552280132,14.096,1582.2,1581.8,6.32175]
[1744552280332,14.096,1582.2,1582.0,6.32098]
[1744552280635,14.096,1582.2,1581.9,6.32139]
[1744552280945,14.096,1582.2,1582.0,12.64168]
[1744552281533,14.096,1582.2,1582.0,6.32084]
[1744552282358,14.096,1582.2,1581.9,6.32143]
[1744552282755,14.096,1582.2,1581.9,6.32151]
[1744552282956,14.096,1582.2,1582.1,6.32071]
[1744552283162,14.096,1582.2,1581.8,1.56]
[1744552283349,14.096,1582.2,1582.1,6.32071]
[1744552283764,6.11,1582.2,1582.1,6.32071]
[1744552284281,6.11,1582.2,1581.4,0.48549932]
[1744552284282,6.32206,1581.8,1581.4,0.48549932]
[1744552284435,1.6233,1582.1,1581.4,0.48549932]
[1744552284637,6.32208,1581.8,1581.4,6.80891932]
[1744552284834,6.32175,1581.9,1581.5,6.32295]
[1744552285037,6.32221,1581.8,1581.3,6.32369]
[1744552285267,6.32221,1581.8,1581.2,0.399048]
[1744552285268,6.32283,1581.6,1581.2,0.399048]
[1744552285470,6.32283,1581.6,1581.2,6.723348]
[1744552285672,6.32273,1581.6,1581.2,6.723348]
[1744552285873,7.7333,1581.7,1581.2,0.399048]
[1744552286080,14.05567,1581.7,1581.2,6.723108]
[1744552286240,14.05567,1581.7,1581.2,0.399048]
[1744552286675,7.7333,1581.7,1581.3,6.32371]
[1744552286846,14.05587,1581.7,1581.3,12.64742]
[1744552287042,14.05587,1581.7,1581.2,0.399048]
[1744552287043,7.7333,1581.7,1581.4,6.32333]
[1744552287242,6.11,1581.7,1581.5,6.32297]
[1744552287444,68.25866,1582.2,1581.8,6.32175]
[1744552287640,68.25866,1582.2,1581.8,12.64349]
[1744552287844,68.25866,1582.2,1581.8,6.32174]
[1744552288064,60.315,1582.2,1581.9,6.32146]
[1744552288268,7.989,1582.3,1582.1,6.32071]
[1744552288643,7.989,1582.3,1582.2,6.32031]
[1744552288841,6.11,1582.6,1582.1,6.32064]
[1744552289063,6.31933,1582.5,1582.1,6.32064]
[1744552289383,6.31933,1582.5,1582.1,12.6412]
[1744552289580,15.9333,1582.7,1582.2,1.5125]
[1744552289581,7.7333,1582.7,1582.2,1.5125]
[1744552289875,7.7333,1582.7,1582.4,6.31938]
[1744552290081,6.11,1582.7,1582.2,1.5125]
[1744552290243,6.31805,1582.8,1582.4,6.31945]
[1744552290446,6.31805,1582.8,1582.4,6.31937]
[1744552290675,16.09495,1582.9,1582.5,6.3191]
[1744552290877,16.09495,1582.9,1582.1,6.32065]
[1744552290878,1.5774,1582.6,1581.9,6.32128]
[1744552291079,6.32011,1582.3,1581.8,7.83438]
[1744552291380,12.64182,1582.1,1581.7,6.32224]
[1744552291566,7.89828,1582.1,1581.8,6.32186]
[1744552291772,7.89828,1582.1,1581.7,6.32211]
[1744552291971,6.32037,1582.2,1581.6,1.5125]
[1744552292286,6.32122,1582.0,1581.6,7.83504]
[1744552292445,6.32192,1581.8,1581.4,14.15921]